[Event "FIDE World Cup 2019"]
[Site "Khanty-Mansiysk"]
[Date "2019.10.02"]
[Round "7.3"]
[White "Yu, Yangyi"]
[Black "Vachier-Lagrave, Maxime"]
[Result "1/2-1/2"]
[ECO "D86"]
[WhiteElo "2763"]
[BlackElo "2774"]
[Annotator "ChessBase"]
[PlyCount "63"]
[EventDate "2019.09.07"]
[EventType "k.o."]
[EventCountry "RUS"]
[SourceTitle "playchess.com"]
[Source "ChessBase"]
[SourceQuality "1"]
[TimeControl "40/5400+30:1800+30"]

1. d4 {[%emt 0:00:00]} Nf6 {[%emt 0:00:00]} 2. c4 {[%emt 0:00:00]} g6 {[%emt 0:00:00]} 3. Nc3 {[%emt 0:00:00]} d5 {[%emt 0:00:00]} 4. cxd5 {[%emt 0:00:10]} Nxd5 {[%emt 0:00:00]} 5. e4 {[%emt 0:00:15]} Nxc3 {[%emt 0:00:00]} 6. bxc3 {[%emt 0:00:09]} Bg7 {[%emt 0:00:00]} 7. Bc4 {[%emt 0:00:34]} c5 {[%emt 0:00:00]} 8. Ne2 {[%emt 0:00:08]} Nc6 {[%emt 0:00:03]} 9. d5 {[%emt 0:00:24]} Na5 {[%emt 0:05:27]} 10. Bd3 {[%emt 0:00:32]} O-O {[%emt 0:05:17]} 11. Rb1 {[%emt 0:00:32]} e6 {[%emt 0:06:05]} 12. c4 {[%emt 0:00:28]} f5 {[%emt 0:00:54]} 13. O-O {[%emt 0:00:44]} fxe4 {[%emt 0:02:13]} 14. Bxe4 {[%emt 0:00:08]} Nxc4 {[%emt 0:00:05]} 15. Nf4 {[%emt 0:00:25]} Nd6 {[%emt 0:00:49]} 16. Bf3 {[%emt 0:00:19]} exd5 {[%emt 0:03:42]} 17. Qxd5+ {[%emt 0:01:55]} Kh8 {[%emt 0:04:13]} 18. Qxc5 {[%emt 0:29:30]} Bf5 {[%emt 0:04:18]} 19. Bb2 {[%emt 0:02:30]} Bxb2 {[%emt 0:01:01]} 20. Rxb2 {[%emt 0:00:06]} Qf6 {[%emt 0:00:16]} 21. Re2 {[%emt 0:07:31]} Rfc8 {[%emt 0:13:49]} 22. Qa5 {[%emt 0:04:08]} Rc4 {[%emt 0:08:19]} 23. Nd5 {[%emt 0:04:45]} Qd4 {[%emt 0:00:06]} 24. Re7 {[%emt 0:06:35]} Rac8 {[%emt 0:09:55]} 25. Rd1 {[%emt 0:03:46]} Rc1 {[%emt 0:01:38]} 26. Ree1 {[%emt 0:01:06]} Nc4 {[%emt 0:03:38]} 27. Qb4 {[%emt 0:02:20]} Rxd1 {[%emt 0:00:14]} 28. Rxd1 {[%emt 0:00:08]} Qb2 {[%emt 0:01:53]} 29. Qe7 {[%emt 0:08:20]} Qg7 {[%emt 0:00:24]} 30. g4 {[%emt 0:04:19]} Bd7 {[%emt 0:01:05]} 31. Qxg7+ {[%emt 0:05:44]} Kxg7 {[%emt 0:00:27]} 32. Ne3 {[%emt 0:00:03]} 1/2-1/2

[Event "FIDE World Cup 2019"]
[Site "Khanty-Mansiysk"]
[Date "2019.10.04"]
[Round "7.5"]
[White "Vachier-Lagrave, Maxime"]
[Black "Yu, Yangyi"]
[Result "1-0"]
[ECO "B40"]
[WhiteElo "2774"]
[BlackElo "2763"]
[Annotator "ChessBase"]
[PlyCount "131"]
[EventDate "2019.09.07"]
[EventType "k.o."]
[EventCountry "RUS"]
[SourceTitle "playchess.com"]
[Source "ChessBase"]
[SourceQuality "1"]
[TimeControl "1500+10"]

1. e4 {[%emt 0:00:00]} c5 {[%emt 0:00:00]} 2. Nf3 {[%emt 0:00:00]} e6 {[%emt 0:00:00]} 3. g3 {[%emt 0:00:01]} Nc6 {[%emt 0:00:13]} 4. Bg2 {[%emt 0:00:03]} Nf6 {[%emt 0:00:03]} 5. Qe2 {[%emt 0:00:09]} Be7 {[%emt 0:00:12]} 6. e5 {[%emt 0:00:06]} Nd5 {[%emt 0:00:01]} 7. O-O {[%emt 0:00:11]} d6 {[%emt 0:00:48]} 8. exd6 {[%emt 0:00:03]} Qxd6 {[%emt 0:00:02]} 9. Rd1 {[%emt 0:00:09]} Nc7 {[%emt 0:02:27]} 10. d4 {[%emt 0:01:59]} cxd4 {[%emt 0:02:08]} 11. Bf4 {[%emt 0:00:04]} Qd8 {[%emt 0:00:02]} 12. Ne5 {[%emt 0:00:01]} Nd5 {[%emt 0:01:04]} 13. Nxc6 {[%emt 0:00:14]} bxc6 {[%emt 0:03:17]} 14. Be5 {[%emt 0:00:01]} O-O {[%emt 0:00:06]} 15. Bxd4 {[%emt 0:00:09]} Bf6 {[%emt 0:00:35]} 16. Qd2 {[%emt 0:03:16]} Bxd4 {[%emt 0:04:25]} 17. Qxd4 {[%emt 0:00:02]} Qb6 {[%emt 0:00:01]} 18. c4 {[%emt 0:00:55]} Nb4 {[%emt 0:01:01]} 19. Qc3 {[%emt 0:00:48]} a5 {[%emt 0:00:45]} 20. Nd2 {[%emt 0:00:26]} Bb7 {[%emt 0:00:38]} 21. a3 {[%emt 0:01:47]} Na6 {[%emt 0:00:03]} 22. Ne4 {[%emt 0:00:01]} c5 {[%emt 0:00:58]} 23. Rd6 {[%emt 0:00:02]} Qc7 {[%emt 0:00:06]} 24. Rad1 {[%emt 0:00:10]} Rad8 {[%emt 0:00:27]} 25. Qd2 {[%emt 0:02:01]} Rxd6 {[%emt 0:00:35]} 26. Qxd6 {[%emt 0:00:01]} Qb8 {[%emt 0:02:29]} 27. Qe7 {[%emt 0:03:13]} Ba8 {[%emt 0:00:12]} 28. Rd7 {[%emt 0:01:05]} Bc6 {[%emt 0:01:58]} 29. Nf6+ {[%emt 0:01:17]} gxf6 {[%emt 0:00:01]} 30. Bxc6 {[%emt 0:00:02]} Qxb2 {[%emt 0:00:02]} 31. Rb7 {[%emt 0:02:33]} Qe5 {[%emt 0:00:33]} 32. h4 {[%emt 0:00:05]} Kg7 {[%emt 0:00:52]} 33. Kg2 {[%emt 0:00:15]} Nb8 {[%emt 0:00:49]} 34. Bf3 {[%emt 0:00:01]} h6 {[%emt 0:00:20]} 35. Rb5 {[%emt 0:00:44]} Na6 {[%emt 0:00:37]} 36. Rxa5 {[%emt 0:00:20]} Nb8 {[%emt 0:01:43]} 37. Rxc5 {[%emt 0:00:29]} Qd4 {[%emt 0:00:02]} 38. Rc7 {[%emt 0:00:23]} Na6 {[%emt 0:00:27]} 39. Rc6 {[%emt 0:00:02]} Rb8 {[%emt 0:00:06]} 40. Bh5 {[%emt 0:01:13]} Qe4+ {[%emt 0:00:02]} 41. Kh2 {[%emt 0:00:02]} Rf8 {[%emt 0:00:21]} 42. Rxa6 {[%emt 0:00:23]} Qf5 {[%emt 0:00:08]} 43. Kg2 {[%emt 0:00:05]} Qxh5 {[%emt 0:00:07]} 44. Rxe6 {[%emt 0:00:02]} Qf5 {[%emt 0:00:27]} 45. Re4 {[%emt 0:00:04]} h5 {[%emt 0:00:45]} 46. Rf4 {[%emt 0:00:07]} Qg6 {[%emt 0:00:28]} 47. Qe4 {[%emt 0:00:07]} Qxe4+ {[%emt 0:00:12]} 48. Rxe4 {[%emt 0:00:02]} Rc8 {[%emt 0:00:08]} 49. a4 {[%emt 0:00:56]} Rc5 {[%emt 0:00:06]} 50. Re3 {[%emt 0:00:21]} Rxc4 {[%emt 0:00:07]} 51. Ra3 {[%emt 0:00:01]} Rc6 {[%emt 0:00:07]} 52. a5 {[%emt 0:00:01]} Ra6 {[%emt 0:00:00]} 53. Kf3 {[%emt 0:00:01]} Kf8 {[%emt 0:00:32]} 54. Ke4 {[%emt 0:00:02]} Ke7 {[%emt 0:00:01]} 55. f3 {[%emt 0:00:06]} Ke6 {[%emt 0:00:02]} 56. g4 {[%emt 0:00:02]} f5+ {[%emt 0:00:09]} 57. gxf5+ {[%emt 0:00:07]} Kd6 {[%emt 0:00:07]} 58. f6 {[%emt 0:00:25]} Ke6 {[%emt 0:00:02]} 59. Ra4 {[%emt 0:00:07]} Kxf6 {[%emt 0:00:17]} 60. Kd5 {[%emt 0:00:02]} Ke7 {[%emt 0:00:00]} 61. Kc5 {[%emt 0:00:01]} Kd7 {[%emt 0:00:01]} 62. Kb5 {[%emt 0:00:02]} Rf6 {[%emt 0:00:07]} 63. a6 {[%emt 0:00:31]} Kc7 {[%emt 0:00:11]} 64. a7 {[%emt 0:00:07]} Rf5+ {[%emt 0:00:02]} 65. Kb4 {[%emt 0:00:01]} Rf4+ {[%emt 0:00:04]} 66. Kb3 {[%emt 0:00:02]} 1-0

[Event "FIDE World Cup 2019"]
[Site "Khanty-Mansiysk"]
[Date "2019.10.04"]
[Round "7.6"]
[White "Ding, Liren"]
[Black "Radjabov, Teimour"]
[Result "1/2-1/2"]
[ECO "A29"]
[WhiteElo "2811"]
[BlackElo "2758"]
[Annotator "ChessBase"]
[PlyCount "79"]
[EventDate "2019.09.07"]
[EventType "k.o."]
[EventCountry "RUS"]
[SourceTitle "playchess.com"]
[Source "ChessBase"]
[SourceQuality "1"]
[TimeControl "1500+10"]

1. c4 {[%emt 0:00:00]} Nf6 {[%emt 0:00:00]} 2. Nc3 {[%emt 0:00:00]} e5 {[%emt 0:00:00]} 3. Nf3 {[%emt 0:00:00]} Nc6 {[%emt 0:00:00]} 4. g3 {[%emt 0:00:00]} d5 {[%emt 0:00:02]} 5. cxd5 {[%emt 0:00:00]} Nxd5 {[%emt 0:00:01]} 6. Bg2 {[%emt 0:00:00]} Bc5 {[%emt 0:00:02]} 7. O-O {[%emt 0:00:00]} O-O {[%emt 0:00:07]} 8. d3 {[%emt 0:00:00]} h6 {[%emt 0:00:14]} 9. Nxd5 {[%emt 0:00:00]} Qxd5 {[%emt 0:00:02]} 10. Nd2 {[%emt 0:00:00]} Qe6 {[%emt 0:02:18]} 11. b3 {[%emt 0:00:08]} Re8 {[%emt 0:00:53]} 12. Bb2 {[%emt 0:00:17]} Bd7 {[%emt 0:04:38]} 13. e3 {[%emt 0:01:23]} Rad8 {[%emt 0:00:54]} 14. a3 {[%emt 0:00:02]} Qg6 {[%emt 0:01:28]} 15. Qc2 {[%emt 0:00:07]} Bb6 {[%emt 0:00:04]} 16. b4 {[%emt 0:01:09]} Bf5 {[%emt 0:00:34]} 17. Ne4 {[%emt 0:00:02]} a6 {[%emt 0:00:32]} 18. Rfd1 {[%emt 0:01:52]} Bg4 {[%emt 0:03:51]} 19. Rd2 {[%emt 0:00:02]} Qh5 {[%emt 0:01:53]} 20. Rc1 {[%emt 0:00:19]} Bf3 {[%emt 0:00:31]} 21. Qb3 {[%emt 0:00:08]} Kh7 {[%emt 0:02:40]} 22. Nc5 {[%emt 0:01:34]} Bxc5 {[%emt 0:01:03]} 23. Rxc5 {[%emt 0:00:01]} Re6 {[%emt 0:00:37]} 24. a4 {[%emt 0:00:25]} b6 {[%emt 0:00:40]} 25. Rc1 {[%emt 0:00:38]} e4 {[%emt 0:00:49]} 26. b5 {[%emt 0:02:24]} axb5 {[%emt 0:00:15]} 27. axb5 {[%emt 0:00:10]} Ne5 {[%emt 0:00:46]} 28. Bxe5 {[%emt 0:01:16]} Rxe5 {[%emt 0:00:02]} 29. Rxc7 {[%emt 0:00:36]} Rxb5 {[%emt 0:00:11]} 30. Bxf3 {[%emt 0:00:01]} exf3 {[%emt 0:00:08]} 31. Qd1 {[%emt 0:00:02]} Rc5 {[%emt 0:01:19]} 32. Rxc5 {[%emt 0:05:11]} bxc5 {[%emt 0:00:01]} 33. d4 {[%emt 0:00:02]} Qf5 {[%emt 0:01:34]} 34. h4 {[%emt 0:01:14]} Rb8 {[%emt 0:01:04]} 35. Qc2 {[%emt 0:00:35]} Qxc2 {[%emt 0:00:45]} 36. Rxc2 {[%emt 0:00:01]} cxd4 {[%emt 0:00:10]} 37. exd4 {[%emt 0:00:01]} Rb1+ {[%emt 0:00:01]} 38. Kh2 {[%emt 0:00:01]} Rd1 {[%emt 0:00:01]} 39. Rc3 {[%emt 0:00:02]} Rxd4 {[%emt 0:00:02]} 40. Rxf3 {[%emt 0:00:00]} 1/2-1/2

[Event "FIDE World Cup 2019"]
[Site "Khanty-Mansiysk"]
[Date "2019.10.04"]
[Round "7.7"]
[White "Ding, Liren"]
[Black "Radjabov, Teimour"]
[Result "1/2-1/2"]
[ECO "A29"]
[WhiteElo "2811"]
[BlackElo "2758"]
[Annotator "ChessBase"]
[PlyCount "81"]
[EventDate "2019.09.07"]
[EventType "k.o."]
[EventCountry "RUS"]
[SourceTitle "playchess.com"]
[Source "ChessBase"]
[SourceQuality "1"]
[TimeControl "600+10"]

1. c4 {[%emt 0:00:00]} Nf6 {[%emt 0:00:00]} 2. Nc3 {[%emt 0:00:00]} e5 {[%emt 0:00:00]} 3. Nf3 {[%emt 0:00:00]} Nc6 {[%emt 0:00:00]} 4. g3 {[%emt 0:00:00]} d5 {[%emt 0:00:00]} 5. cxd5 {[%emt 0:00:00]} Nxd5 {[%emt 0:00:00]} 6. Bg2 {[%emt 0:00:00]} Bc5 {[%emt 0:00:00]} 7. O-O {[%emt 0:00:00]} O-O {[%emt 0:00:01]} 8. d3 {[%emt 0:00:00]} h6 {[%emt 0:00:01]} 9. Nxd5 {[%emt 0:00:00]} Qxd5 {[%emt 0:00:01]} 10. Nd2 {[%emt 0:00:00]} Qe6 {[%emt 0:00:02]} 11. b3 {[%emt 0:00:00]} Re8 {[%emt 0:00:04]} 12. Bb2 {[%emt 0:00:00]} Bd7 {[%emt 0:00:01]} 13. Rc1 {[%emt 0:00:05]} Bd4 {[%emt 0:00:20]} 14. Bxd4 {[%emt 0:00:57]} exd4 {[%emt 0:00:01]} 15. Ne4 {[%emt 0:00:03]} b6 {[%emt 0:00:30]} 16. a3 {[%emt 0:00:16]} Rac8 {[%emt 0:01:17]} 17. Re1 {[%emt 0:00:21]} a5 {[%emt 0:01:24]} 18. Rc4 {[%emt 0:00:12]} f5 {[%emt 0:04:15]} 19. Nd2 {[%emt 0:00:03]} Qd6 {[%emt 0:00:05]} 20. Rc2 {[%emt 0:04:22]} Ne5 {[%emt 0:00:11]} 21. Nc4 {[%emt 0:00:00]} Nxc4 {[%emt 0:00:51]} 22. dxc4 {[%emt 0:00:03]} Qxa3 {[%emt 0:00:32]} 23. Qxd4 {[%emt 0:01:15]} Qxb3 {[%emt 0:01:01]} 24. Rb2 {[%emt 0:01:12]} Qa3 {[%emt 0:00:49]} 25. c5 {[%emt 0:00:39]} bxc5 {[%emt 0:00:32]} 26. Qc4+ {[%emt 0:00:00]} Kh8 {[%emt 0:00:42]} 27. Rb7 {[%emt 0:00:02]} Be6 {[%emt 0:00:42]} 28. Bd5 {[%emt 0:00:02]} Bxd5 {[%emt 0:00:02]} 29. Qxd5 {[%emt 0:00:01]} Qc3 {[%emt 0:00:01]} 30. Rbb1 {[%emt 0:01:13]} Qe5 {[%emt 0:00:41]} 31. Qc6 {[%emt 0:00:37]} Ra8 {[%emt 0:00:41]} 32. Rbc1 {[%emt 0:00:15]} Qd6 {[%emt 0:00:19]} 33. Qxc5 {[%emt 0:00:07]} Qxc5 {[%emt 0:00:09]} 34. Rxc5 {[%emt 0:00:00]} a4 {[%emt 0:00:10]} 35. Rxc7 {[%emt 0:00:20]} a3 {[%emt 0:00:03]} 36. Rc2 {[%emt 0:00:03]} Rec8 {[%emt 0:00:18]} 37. Ra2 {[%emt 0:00:00]} Rc3 {[%emt 0:00:10]} 38. Rb1 {[%emt 0:00:33]} Ra5 {[%emt 0:00:11]} 39. h4 {[%emt 0:00:17]} Kh7 {[%emt 0:00:10]} 40. Rb6 {[%emt 0:00:14]} h5 {[%emt 0:00:08]} 41. Kg2 {[%emt 0:00:07]} 1/2-1/2

[Event "FIDE World Cup 2019"]
[Site "Khanty-Mansiysk"]
[Date "2019.10.04"]
[Round "7.8"]
[White "Radjabov, Teimour"]
[Black "Ding, Liren"]
[Result "1/2-1/2"]
[ECO "D40"]
[WhiteElo "2758"]
[BlackElo "2811"]
[Annotator "RC"]
[PlyCount "60"]
[EventDate "2019.09.07"]
[EventType "k.o."]
[EventCountry "RUS"]
[SourceTitle "playchess.com"]
[Source "ChessBase"]
[SourceQuality "1"]
[TimeControl "600+10"]

1. Nf3 d5 2. d4 {[%emt 0:00:00]} Nf6 {[%emt 0:00:00]} 3. c4 {[%emt 0:00:00]} e6 {[%emt 0:00:00]} 4. Nc3 {[%emt 0:00:00]} c5 {[%emt 0:00:00]} 5. e3 {[%emt 0:00:00]} dxc4 {[%emt 0:00:07]} 6. Bxc4 {[%emt 0:00:00]} a6 {[%emt 0:00:01]} 7. O-O {[%emt 0:00:08]} b5 {[%emt 0:00:02]} 8. Be2 {[%emt 0:00:01]} Nbd7 {[%emt 0:00:09]} 9. d5 {[%emt 0:00:13]} exd5 {[%emt 0:00:01]} 10. Nxd5 Bb7 11. Nxf6+ {[%emt 0:00:10]} Qxf6 {[%emt 0:00:02]} 12. a4 {[%emt 0:00:02]} b4 {[%emt 0:00:00]} 13. e4 {[%emt 0:00:09]} h6 {[%emt 0:00:13]} 14. Qc2 {[%emt 0:00:18]} Bd6 {[%emt 0:00:12]} 15. Be3 {[%emt 0:01:27]} O-O {[%emt 0:00:03]} 16. Nd2 {[%emt 0:00:20]} Bf4 {[%emt 0:01:02]} 17. Bxf4 {[%emt 0:00:58]} Qxf4 {[%emt 0:00:02]} 18. f3 {[%emt 0:00:03]} Rfd8 {[%emt 0:01:28]} 19. Nc4 {[%emt 0:01:00]} Ne5 {[%emt 0:00:01]} 20. Nxe5 {[%emt 0:03:21]} Qxe5 {[%emt 0:00:10]} 21. Rac1 {[%emt 0:00:09]} Rac8 {[%emt 0:00:59]} 22. Bc4 {[%emt 0:00:14]} a5 {[%emt 0:00:24]} 23. Rfd1 {[%emt 0:00:32]} Rd4 {[%emt 0:00:07]} 24. b3 {[%emt 0:00:36]} Rcd8 {[%emt 0:00:02]} 25. Rxd4 {[%emt 0:00:24]} cxd4 {[%emt 0:01:13]} 26. Qd3 {[%emt 0:00:34]} h5 {[%emt 0:00:37]} 27. Rd1 {[%emt 0:00:22]} Rd7 {[%emt 0:01:00]} 28. Bb5 {[%emt 0:00:04]} Rd8 {[%emt 0:00:07]} 29. Bc4 {[%emt 0:00:01]} Rd7 {[%emt 0:00:34]} 30. Bb5 {[%emt 0:00:02]} Rd8 {[%emt 0:00:03]} 1/2-1/2

[Event "FIDE World Cup 2019"]
[Site "Khanty-Mansiysk"]
[Date "2019.10.04"]
[Round "7.10"]
[White "Radjabov, Teimour"]
[Black "Ding, Liren"]
[Result "1-0"]
[ECO "B59"]
[WhiteElo "2758"]
[BlackElo "2811"]
[Annotator "ChessBase"]
[PlyCount "91"]
[EventDate "2019.09.07"]
[EventType "k.o."]
[EventCountry "RUS"]
[SourceTitle "playchess.com"]
[Source "ChessBase"]
[SourceQuality "1"]
[TimeControl "300+3"]

1. e4 {[%emt 0:00:00]} c5 {[%emt 0:00:00]} 2. Nf3 {[%emt 0:00:00]} d6 {[%emt 0:00:00]} 3. d4 {[%emt 0:00:00]} cxd4 {[%emt 0:00:00]} 4. Nxd4 {[%emt 0:00:01]} Nf6 {[%emt 0:00:00]} 5. Nc3 {[%emt 0:00:01]} Nc6 {[%emt 0:00:01]} 6. Be2 {[%emt 0:00:13]} e5 {[%emt 0:00:02]} 7. Nb3 {[%emt 0:00:13]} Be7 {[%emt 0:00:03]} 8. Bg5 {[%emt 0:00:05]} O-O {[%emt 0:00:06]} 9. Bxf6 {[%emt 0:00:10]} Bxf6 {[%emt 0:00:01]} 10. Nd5 {[%emt 0:00:03]} Bg5 {[%emt 0:00:00]} 11. Bg4 {[%emt 0:00:17]} Be6 {[%emt 0:00:09]} 12. O-O {[%emt 0:00:06]} g6 {[%emt 0:00:06]} 13. Bxe6 {[%emt 0:00:43]} fxe6 {[%emt 0:00:01]} 14. Nc3 {[%emt 0:00:16]} Qe7 {[%emt 0:00:23]} 15. Qd3 {[%emt 0:00:01]} Rad8 {[%emt 0:00:08]} 16. Rad1 {[%emt 0:00:01]} a6 {[%emt 0:00:06]} 17. a3 {[%emt 0:00:04]} Kg7 {[%emt 0:00:06]} 18. Qg3 {[%emt 0:00:16]} h5 {[%emt 0:00:04]} 19. Ne2 {[%emt 0:00:26]} d5 {[%emt 0:00:01]} 20. Qc3 {[%emt 0:00:33]} Rf6 {[%emt 0:00:47]} 21. Qc5 {[%emt 0:00:03]} Qf7 {[%emt 0:00:01]} 22. c3 {[%emt 0:00:14]} h4 {[%emt 0:01:13]} 23. h3 {[%emt 0:00:01]} Rd7 {[%emt 0:00:12]} 24. Qb6 {[%emt 0:00:09]} Re7 {[%emt 0:00:56]} 25. Nc5 {[%emt 0:00:04]} Kh7 {[%emt 0:00:57]} 26. b4 {[%emt 0:00:48]} d4 {[%emt 0:00:31]} 27. Nd3 {[%emt 0:00:37]} Rd7 {[%emt 0:00:14]} 28. Qc5 {[%emt 0:00:09]} dxc3 {[%emt 0:00:03]} 29. Qxc3 {[%emt 0:00:01]} Bh6 {[%emt 0:00:06]} 30. a4 {[%emt 0:00:11]} Nd4 {[%emt 0:00:06]} 31. Nxd4 {[%emt 0:00:02]} exd4 {[%emt 0:00:01]} 32. Qc4 {[%emt 0:00:04]} Qe7 {[%emt 0:00:07]} 33. Ne5 {[%emt 0:00:02]} Rc7 {[%emt 0:00:04]} 34. Qxd4 {[%emt 0:00:02]} Bf4 {[%emt 0:00:00]} 35. Ng4 {[%emt 0:00:05]} Rf7 {[%emt 0:00:01]} 36. e5 {[%emt 0:00:01]} Rf5 {[%emt 0:00:04]} 37. b5 {[%emt 0:00:05]} axb5 {[%emt 0:00:01]} 38. axb5 {[%emt 0:00:00]} g5 {[%emt 0:00:05]} 39. b6 {[%emt 0:00:03]} Rc6 {[%emt 0:00:03]} 40. Qe4 {[%emt 0:00:13]} Rxb6 {[%emt 0:00:03]} 41. Rd7 {[%emt 0:00:02]} Qxd7 {[%emt 0:00:06]} 42. Nf6+ {[%emt 0:00:00]} Kg7 {[%emt 0:00:02]} 43. Nxd7 {[%emt 0:00:03]} Rb5 {[%emt 0:00:01]} 44. Qc4 {[%emt 0:00:04]} Rd5 {[%emt 0:00:02]} 45. Nc5 {[%emt 0:00:06]} Rfxe5 {[%emt 0:00:04]} 46. Nxe6+ {[%emt 0:00:01]} 1-0